bitfinex/quotes_BTCUSD_20240712
["timestamp","ask_amount","ask_price","bid_price","bid_amount"]
[1720769371497,1.41049483,57316.0,57315.0,0.017913]
[1720769371698,1.75943683,57316.0,57315.0,0.017913]
[1720769371898,1.9155444,57316.0,57315.0,0.017913]
[1720769372096,1.9145444,57316.0,57315.0,0.008913]
[1720769372319,1.9135444,57316.0,57315.0,0.000913]
[1720769372557,1.9145444,57316.0,57315.0,0.000913]
[1720769372759,1.9215444,57316.0,57315.0,0.001913]
[1720769374164,1.9205444,57316.0,57315.0,0.001913]
[1720769374572,1.9255444,57316.0,57315.0,0.001913]
[1720769374930,1.56200743,57316.0,57315.0,0.001913]
[1720769375130,1.50850743,57316.0,57315.0,0.001913]
[1720769375790,1.35239986,57316.0,57315.0,0.001913]
[1720769375992,0.174486,57311.0,57310.0,0.00306353]
[1720769376959,1.221405,57311.0,57310.0,0.00306353]
[1720769377200,0.523468,57310.0,57309.0,0.000913]
[1720769378001,0.54174184,57310.0,57309.0,0.000913]
[1720769378133,1.23969984,57310.0,57309.0,0.000913]
[1720769378336,1.25429481,57310.0,57309.0,0.000913]
[1720769379435,1.25429481,57310.0,57309.0,0.001913]
[1720769379640,1.25429481,57310.0,57309.0,0.004913]
[1720769379848,1.25429481,57310.0,57309.0,0.003913]
[1720769380308,1.25729481,57310.0,57309.0,0.003913]
[1720769381601,1.25729481,57310.0,57309.0,0.000913]
[1720769381787,1.80667381,57310.0,57309.0,0.000913]
[1720769381953,1.221619,57301.0,57300.0,0.008556]
[1720769382158,1.716553,57301.0,57300.0,0.008556]
[1720769382364,2.75041937,57301.0,57300.0,0.008556]
[1720769382567,2.82691937,57301.0,57300.0,0.008556]
[1720769382932,2.6123244,57301.0,57300.0,1.03e-06]
[1720769383130,1.570761,57297.0,57296.0,0.000913]
[1720769383336,1.812461,57297.0,57296.0,0.000913]
[1720769383531,2.02705597,57297.0,57296.0,0.000913]
[1720769383820,1.92802848,57297.0,57296.0,0.000913]
[1720769384000,2.14262345,57297.0,57296.0,0.000913]
[1720769384201,2.14262345,57297.0,57280.0,0.08511435]
[1720769384202,1.222042,57281.0,57280.0,0.08511435]
[1720769384901,1.18211072,57281.0,57280.0,0.08511435]
[1720769385328,1.26371072,57281.0,57280.0,0.08511435]
[1720769385937,1.26471072,57281.0,57280.0,0.09211435]
[1720769388110,1.28030569,57281.0,57280.0,0.007]
[1720769388854,1.85800506,57281.0,57280.0,0.007]
[1720769389068,1.95800506,57281.0,57280.0,0.007]
[1720769389735,1.222172,57275.0,57274.0,0.10472441]
[1720769389901,1.303772,57275.0,57274.0,0.10472441]
[1720769390135,1.652964,57275.0,57274.0,0.10472441]
[1720769390708,1.571364,57275.0,57274.0,0.10472441]
[1720769391639,1.58695897,57275.0,57274.0,0.10472441]
[1720769391934,1.572364,57275.0,57274.0,0.10472441]
[1720769392370,1.85054537,57275.0,57274.0,0.11472441]
[1720769392590,2.19973737,57275.0,57274.0,0.11472441]
[1720769393068,2.19873737,57275.0,57274.0,0.10472441]
[1720769393201,2.21701473,57275.0,57274.0,0.10472441]
[1720769393564,2.27851473,57275.0,57274.0,0.10472441]
[1720769393766,2.48751473,57275.0,57274.0,0.10472441]
[1720769394706,2.48751473,57275.0,57271.0,4.3e-07]
[1720769394707,0.61451896,57272.0,57271.0,4.3e-07]
[1720769394916,0.18922997,57262.0,57261.0,0.009097]
[1720769395157,0.88777197,57262.0,57261.0,0.009097]
[1720769395364,0.98777197,57262.0,57261.0,0.009097]
[1720769395761,1.68631397,57262.0,57261.0,0.009097]
[1720769395963,2.32212237,57262.0,57261.0,0.009097]
[1720769396798,2.32612237,57262.0,57261.0,0.009097]
[1720769397424,2.33212237,57262.0,57261.0,0.009097]
[1720769398236,2.16188497,57262.0,57261.0,0.009097]
[1720769398445,1.69631397,57262.0,57261.0,0.009097]
[1720769399635,1.681719,57262.0,57261.0,0.147197]
[1720769400433,1.332448,57262.0,57261.0,0.147197]
[1720769400633,1.332448,57262.0,57261.0,0.19360203]
[1720769400859,1.36559618,57262.0,57261.0,0.147197]
[1720769401064,1.36559618,57262.0,57261.0,0.009097]
[1720769401065,1.72946215,57262.0,57261.0,0.009097]
[1720769402060,1.681719,57262.0,57261.0,0.009097]
[1720769402985,1.69631397,57262.0,57261.0,0.009097]
[1720769403840,2.04558497,57262.0,57261.0,0.009097]
[1720769404267,2.16238497,57262.0,57261.0,0.009097]
[1720769404470,2.29341696,57262.0,57261.0,0.009097]
[1720769404675,2.05369297,57262.0,57261.0,0.009097]
[1720769404848,1.689827,57262.0,57261.0,0.009097]
[1720769405264,1.70442197,57262.0,57261.0,0.009097]
[1720769406162,1.689827,57262.0,57261.0,0.009097]
[1720769406387,1.70442197,57262.0,57261.0,0.009097]
[1720769406596,1.87465937,57262.0,57261.0,0.009097]
[1720769406769,1.99215937,57262.0,57261.0,0.009097]
[1720769406971,2.34143037,57262.0,57261.0,0.009097]
[1720769407938,2.22393037,57262.0,57261.0,0.009097]
[1720769408140,2.05369297,57262.0,57261.0,0.009097]
[1720769408339,2.07197033,57262.0,57261.0,0.009097]
[1720769410319,2.37189432,57262.0,57261.0,0.009097]
[1720769410581,2.39489432,57262.0,57261.0,0.009097]
[1720769411952,2.19489432,57262.0,57261.0,0.009097]
[1720769412153,1.70810436,57262.0,57261.0,0.009097]
[1720769412329,1.72269933,57262.0,57261.0,0.009097]
[1720769412717,1.70810436,57262.0,57261.0,0.009097]
[1720769413177,1.7841141,57262.0,57261.0,0.009097]
[1720769413379,1.79870907,57262.0,57261.0,0.009097]
[1720769414439,1.72269933,57262.0,57261.0,0.009097]
[1720769414892,1.35883336,57262.0,57261.0,0.009097]
[1720769415094,1.34972536,57262.0,57261.0,0.009097]
[1720769415943,1.34572536,57262.0,57261.0,0.009097]
[1720769416362,1.34772536,57262.0,57261.0,0.085597]
[1720769416571,0.99245436,57262.0,57261.0,0.19610203]
[1720769416748,0.99245436,57262.0,57261.0,0.149697]
[1720769416974,1.34672536,57262.0,57261.0,0.149697]
[1720769417395,0.99045436,57262.0,57261.0,0.149697]
[1720769417548,0.99045436,57262.0,57261.0,0.151697]
[1720769417746,0.89045436,57262.0,57261.0,0.28321638]
[1720769418010,0.54118336,57262.0,57261.0,0.28321638]
[1720769418141,0.54218336,57262.0,57261.0,0.28321638]
[1720769419922,0.19291236,57262.0,57261.0,0.28321638]
[1720769420519,0.54218336,57262.0,57261.0,0.28321638]
[1720769420882,0.19291236,57262.0,57261.0,0.28321638]
[1720769421481,0.01927736,57262.0,57261.0,0.28321638]
[1720769423254,0.01927736,57262.0,57261.0,0.52134695]
[1720769423552,0.01927736,57262.0,57261.0,0.66654001]
[1720769423713,0.01927736,57262.0,57261.0,0.66960354]
[1720769424084,0.01927736,57262.0,57261.0,0.42840944]
[1720769424085,0.01827736,57262.0,57261.0,0.42840944]
[1720769424316,0.01827736,57262.0,57261.0,0.28221638]
[1720769424648,0.01827736,57262.0,57261.0,0.28121638]
[1720769424843,0.01827736,57262.0,57261.0,0.28221638]
[1720769425046,0.16889836,57267.0,57266.0,0.04640503]
[1720769425426,0.16889836,57267.0,57266.0,0.18960503]
[1720769426555,0.16989836,57267.0,57266.0,0.19660503]
[1720769427232,0.17089836,57267.0,57266.0,0.19860503]
[1720769428102,0.52013936,57267.0,57266.0,0.19860503]
[1720769428632,0.86938036,57267.0,57266.0,0.19860503]
[1720769430252,0.52013936,57267.0,57266.0,0.19860503]
[1720769431208,0.349232,57269.0,57266.0,0.19860503]
[1720769431366,0.523846,57269.0,57268.0,0.04640503]
[1720769431573,0.973078,57269.0,57268.0,0.04640503]
[1720769431768,0.973078,57269.0,57268.0,0.12410503]
[1720769431970,0.623846,57269.0,57268.0,0.19030503]
[1720769432171,0.00083,57271.0,57270.0,0.04640503]
[1720769432396,0.00083,57271.0,57270.0,0.19030503]
[1720769432595,0.175438,57271.0,57270.0,0.18930503]
[1720769433298,0.00083,57271.0,57270.0,0.18930503]
[1720769433521,0.00183,57271.0,57270.0,0.19430503]
[1720769433766,0.176438,57271.0,57270.0,0.19430503]
[1720769434528,0.00183,57271.0,57270.0,0.19330503]
[1720769434746,0.00183,57271.0,57270.0,0.31330503]
[1720769435011,0.00183,57271.0,57270.0,0.19679687]
[1720769435288,0.00283,57271.0,57270.0,0.19979687]
[1720769435465,0.00283,57271.0,57270.0,0.31979687]
[1720769436245,0.00283,57271.0,57270.0,0.25979687]
[1720769437057,0.00283,57271.0,57270.0,1.18936003]
[1720769438120,0.00183,57271.0,57270.0,1.18636003]
[1720769438320,0.00183,57271.0,57270.0,1.19036003]
[1720769438659,0.00283,57271.0,57270.0,1.19036003]
[1720769439144,0.00183,57271.0,57270.0,1.18536003]
[1720769439582,0.00283,57271.0,57270.0,1.19236003]
[1720769439936,0.00183,57271.0,57270.0,1.18536003]
[1720769440342,0.00283,57271.0,57270.0,1.19836003]
[1720769441533,0.00283,57271.0,57270.0,0.32530503]
[1720769443312,0.00283,57271.0,57270.0,0.3287968]
[1720769443456,0.00283,57271.0,57270.0,0.5034078]
[1720769443662,0.00283,57271.0,57270.0,1.19836003]
[1720769445824,0.00283,57271.0,57270.0,0.84913803]
[1720769448001,0.00283,57271.0,57270.0,0.32530503]
[1720769453811,0.00283,57271.0,57270.0,0.50340776]
[1720769454043,0.00283,57271.0,57270.0,0.32879676]
[1720769454160,0.00183,57271.0,57270.0,0.32879676]
[1720769457316,0.00183,57271.0,57270.0,0.32530503]
[1720769457798,0.00183,57271.0,57270.0,0.32879674]
[1720769459466,0.00183,57271.0,57270.0,1.40185174]
[1720769459672,0.00183,57271.0,57270.0,1.60605174]
[1720769459874,0.00183,57271.0,57270.0,1.95527374]
[1720769460692,0.00183,57271.0,57270.0,1.75527374]
[1720769460899,0.00183,57271.0,57270.0,1.75178203]
[1720769461104,0.00183,57271.0,57270.0,1.40256003]
[1720769462159,0.00183,57271.0,57270.0,1.95178203]
[1720769462999,0.00183,57271.0,57270.0,2.05178203]
[1720769463833,0.00183,57271.0,57270.0,2.03878203]
[1720769463834,0.00083,57271.0,57270.0,2.03878203]
[1720769464171,0.001,57271.0,57270.0,2.04878203]
[1720769464728,0.001,57271.0,57270.0,2.16278203]
[1720769480556,0.001,57271.0,57270.0,1.95858203]
[1720769480752,0.0535,57289.0,57288.0,0.04440503]
[1720769480753,0.03235233,57289.0,57288.0,0.04440503]
[1720769482107,0.03235233,57289.0,57288.0,0.04740503]
[1720769482300,0.03235233,57289.0,57288.0,0.04940503]
[1720769483863,0.03318233,57289.0,57288.0,0.04940503]
[1720769484062,0.00083,57289.0,57288.0,0.04940503]
[1720769484294,0.00083,57289.0,57288.0,0.17246856]
[1720769484761,0.00083,57289.0,57288.0,0.16940503]
[1720769485613,0.00083,57289.0,57288.0,0.17246856]
[1720769486585,0.00083,57289.0,57288.0,0.23845933]
[1720769487411,0.00083,57289.0,57288.0,0.41301533]
[1720769488110,0.00083,57289.0,57288.0,0.7540648]
[1720769488467,0.00083,57289.0,57288.0,0.76312833]
[1720769488668,0.00083,57289.0,57288.0,0.76112833]
[1720769489073,0.00083,57289.0,57288.0,0.77012833]
[1720769489603,0.00083,57289.0,57288.0,1.66835433]
[1720769489806,0.00083,57289.0,57288.0,1.6652908]
[1720769490209,0.00083,57289.0,57288.0,1.6612908]
[1720769490419,0.00083,57289.0,57288.0,1.6712908]
[1720769490556,0.00083,57289.0,57288.0,1.6622908]
[1720769491221,0.00083,57289.0,57288.0,1.7281908]
[1720769491831,0.00083,57289.0,57288.0,1.7421908]
[1720769492028,0.00083,57289.0,57288.0,1.7531908]
[1720769492440,0.00083,57289.0,57288.0,1.38878577]
[1720769492613,0.00083,57289.0,57288.0,1.5531908]
[1720769494120,0.00083,57289.0,57288.0,1.5421908]
[1720769494632,0.00083,57289.0,57288.0,1.7561908]
[1720769494998,0.00083,57289.0,57288.0,1.75270003]
[1720769496174,0.00083,57289.0,57288.0,0.07240503]
[1720769496354,0.03323,57289.0,57288.0,0.07240503]
[1720769496554,0.214783,57289.0,57288.0,0.07240503]
[1720769496755,0.56389,57289.0,57288.0,0.07240503]
[1720769497579,0.56389,57289.0,57288.0,0.05840503]
[1720769497879,0.56389,57289.0,57288.0,0.06540503]
[1720769498188,0.56389,57289.0,57288.0,0.04440503]
[1720769498385,0.56389,57289.0,57288.0,0.06440503]
[1720769498944,0.56389,57289.0,57288.0,0.05140503]
[1720769499413,0.56389,57289.0,57288.0,0.05940503]
[1720769503577,0.912997,57289.0,57288.0,0.05940503]
[1720769505674,1.68680597,57289.0,57288.0,0.015]
[1720769505879,1.78680597,57289.0,57288.0,0.015]
[1720769506293,2.10972996,57289.0,57288.0,0.015]
[1720769506586,2.48554693,57289.0,57288.0,0.015]
[1720769506788,0.87301,57273.0,57272.0,0.04440503]
[1720769507004,1.229214,57273.0,57272.0,0.04440503]
[1720769507204,1.229214,57273.0,57270.0,0.04531803]
[1720769507205,0.523824,57271.0,57270.0,0.04531803]
[1720769507424,0.523824,57271.0,57270.0,0.000913]
[1720769507425,1.222256,57271.0,57270.0,0.000913]
[1720769507634,1.84206977,57271.0,57270.0,0.000913]
[1720769507835,2.19128577,57271.0,57270.0,0.000913]
[1720769508036,2.39128577,57271.0,57270.0,0.000913]
[1720769508281,2.71420976,57271.0,57270.0,0.000913]
[1720769508722,2.71420976,57271.0,57270.0,0.001913]
[1720769508932,2.51420976,57271.0,57270.0,0.001913]
[1720769509145,2.55051658,57271.0,57270.0,0.000913]
[1720769509361,2.01437379,57271.0,57270.0,0.000913]
[1720769509613,1.79137379,57271.0,57270.0,0.000913]
[1720769509814,1.79957379,57271.0,57270.0,0.000913]
[1720769510565,1.80957379,57271.0,57270.0,0.001913]
[1720769510772,1.73397882,57271.0,57270.0,0.001913]
[1720769510995,2.78581378,57271.0,57270.0,1e-06]
[1720769511195,0.174632,57263.0,57262.0,0.05236232]
[1720769511364,0.27613201,57263.0,57262.0,0.05236232]
[1720769511576,0.35172698,57263.0,57262.0,0.05236232]
[1720769511778,2.16912468,57263.0,57262.0,0.05236232]
[1720769512036,2.79614867,57263.0,57262.0,0.00711727]
[1720769512358,1.34877396,57257.0,57256.0,0.01305323]
[1720769512553,1.69825697,57252.0,57251.0,0.009108]
[1720769512749,2.17058897,57252.0,57251.0,0.009108]
[1720769512933,2.51268156,57252.0,57251.0,0.009108]
[1720769513235,2.16334956,57252.0,57251.0,0.009108]
[1720769513452,2.33358696,57252.0,57251.0,0.009108]
[1720769513668,0.524263,57223.0,57220.0,0.51374964]
[1720769513893,0.174761,57221.0,57220.0,0.50458764]
[1720769514099,0.174764,57220.0,57219.0,0.54275495]
[1720769514243,0.0928366,57221.0,57220.0,0.0619]
[1720769514442,0.2675976,57221.0,57220.0,0.1438]
[1720769514671,0.349505,57224.0,57219.0,0.54275495]
[1720769514672,0.87382,57220.0,57219.0,0.54275495]
[1720769515484,0.9666566,57220.0,57219.0,0.58715998]
[1720769515723,0.87382,57220.0,57219.0,0.58715998]
[1720769517897,0.00306353,57223.0,57222.0,0.04440503]
[1720769518177,0.00306353,57223.0,57219.0,0.54275495]
[1720769518178,0.17780853,57226.0,57225.0,0.04440503]
[1720769518416,0.00306353,57226.0,57219.0,0.54366795]
[1720769518619,0.87382,57220.0,57219.0,0.54366795]
[1720769518818,1.32326906,57220.0,57219.0,0.54366795]
[1720769519020,1.66875043,57220.0,57219.0,0.54366795]
[1720769519230,2.01827843,57220.0,57219.0,0.54366795]
[1720769519750,1.94268346,57220.0,57219.0,0.54366795]
[1720769520103,2.01827843,57220.0,57219.0,0.54366795]
[1720769520466,2.24537843,57220.0,57219.0,0.54366795]
[1720769520830,2.44537843,57220.0,57219.0,0.54366795]
[1720769520986,2.99789395,57220.0,57219.0,0.54366795]
[1720769521189,2.44836595,57220.0,57219.0,0.54366795]
[1720769521417,2.44530242,57220.0,57219.0,0.54366795]
[1720769521909,2.14678346,57220.0,57219.0,0.54366795]
[1720769522107,2.11827843,57220.0,57219.0,0.54366795]
[1720769522530,2.04268346,57220.0,57219.0,0.54366795]
[1720769522758,1.42326906,57220.0,57219.0,0.000913]
[1720769522966,0.2,57224.0,57219.0,0.04531803]
[1720769522967,0.174761,57221.0,57219.0,0.04531803]
[1720769523285,0.52735553,57220.0,57219.0,0.04531803]
[1720769523629,0.524292,57220.0,57219.0,0.04531803]
[1720769523886,0.9612013,57220.0,57219.0,0.000913]
[1720769524306,1.3107293,57220.0,57219.0,0.000913]
[1720769524510,1.4107293,57220.0,57219.0,0.000913]
[1720769524878,1.0612013,57220.0,57219.0,0.000913]
[1720769525080,0.624292,57220.0,57219.0,0.04531803]
[1720769525286,0.57153322,57220.0,57219.0,0.000913]
[1720769525491,0.57153322,57220.0,57207.0,0.005931]
[1720769525492,0.524401,57208.0,57207.0,0.005931]
[1720769525645,0.874002,57208.0,57207.0,0.005931]
[1720769525847,0.974002,57208.0,57207.0,0.005931]
[1720769526052,1.323603,57208.0,57207.0,0.005931]
[1720769526271,2.13790323,57208.0,57207.0,0.005931]
[1720769526470,2.30814063,57208.0,57207.0,0.005931]
[1720769527172,1.58978327,57208.0,57207.0,0.005931]
[1720769527408,1.38568327,57208.0,57207.0,0.005931]
[1720769528331,2.11490323,57208.0,57207.0,0.005931]
[1720769528473,2.13790323,57208.0,57207.0,0.005931]
[1720769528674,1.96510282,57208.0,57207.0,0.005931]
[1720769528918,2.11234022,57208.0,57207.0,0.005931]
[1720769529376,2.10962167,57208.0,57207.0,0.005931]
[1720769529987,2.18521664,57208.0,57207.0,0.005931]
[1720769530819,2.10962167,57208.0,57207.0,0.005931]
[1720769531218,2.18521664,57208.0,57207.0,0.005931]
[1720769531463,2.10962167,57208.0,57207.0,0.005931]
[1720769531866,1.97334899,57200.0,57199.0,0.0114757]
[1720769532102,1.896425,57200.0,57199.0,0.0114757]
[1720769532326,1.03899173,57200.0,57199.0,0.0114757]
[1720769532507,1.03620527,57200.0,57199.0,0.0114757]
[1720769533068,1.97334899,57200.0,57199.0,0.0114757]
[1720769533274,1.38585527,57200.0,57199.0,0.0114757]
[1720769534455,1.74901997,57200.0,57199.0,0.0114757]
[1720769534658,1.38585527,57200.0,57199.0,0.0114757]
[1720769535488,1.323775,57200.0,57199.0,0.0114757]
[1720769536792,0.274825,57200.0,57199.0,0.0114757]
[1720769536993,0.00150001,57204.0,57200.0,0.148]
[1720769537251,0.174819,57202.0,57201.0,0.08511435]
[1720769537446,0.00306353,57208.0,57205.0,0.04440503]
[1720769537648,0.174804,57207.0,57206.0,0.04440503]
[1720769537799,0.2,57219.0,57201.0,0.08511435]
[1720769537800,0.174774,57217.0,57209.0,0.04440503]
[1720769538007,0.0592548,57220.0,57199.0,0.0114757]
[1720769538008,0.2,57207.0,57199.0,0.0114757]
[1720769538222,0.874125,57200.0,57199.0,0.0114757]
[1720769538572,1.84901997,57200.0,57199.0,0.0114757]
[1720769538977,2.29859396,57200.0,57199.0,0.0114757]
[1720769539234,2.39859396,57200.0,57199.0,0.0114757]
[1720769539413,2.59183136,57200.0,57199.0,0.0114757]
[1720769539837,2.24218136,57200.0,57199.0,0.0114757]
[1720769540218,2.30028079,57200.0,57199.0,0.0114757]
[1720769541357,2.64993079,57200.0,57199.0,0.0114757]
[1720769543237,2.30028079,57200.0,57199.0,0.0114757]
[1720769543651,2.0301194,57200.0,57199.0,0.0114757]
[1720769543861,1.896425,57200.0,57199.0,0.0114757]
[1720769544029,1.873425,57200.0,57199.0,0.0114757]
[1720769544369,1.94901997,57200.0,57199.0,0.0114757]
[1720769545334,1.873425,57200.0,57199.0,0.0114757]
[1720769545562,2.01384997,57200.0,57199.0,0.0114757]
[1720769546163,2.08944494,57200.0,57199.0,0.0114757]
[1720769546806,1.66419997,57200.0,57199.0,0.0114757]
[1720769547425,2.18936893,57200.0,57199.0,0.0114757]
[1720769547626,2.27035469,57200.0,57199.0,0.0114757]
[1720769548998,2.27035469,57200.0,57199.0,0.01142843]
[1720769551554,2.27035469,57200.0,57199.0,0.01234143]
[1720769551754,2.12992972,57200.0,57199.0,0.01234143]
[1720769552371,1.93141076,57200.0,57199.0,0.01234143]
[1720769552560,1.873425,57200.0,57199.0,0.01234143]
[1720769552761,1.94901997,57200.0,57199.0,0.01234143]
[1720769553368,2.34894396,57200.0,57199.0,0.01234143]
[1720769553566,3.24847712,57200.0,57199.0,0.01234143]
[1720769553808,3.24797712,57200.0,57199.0,0.01234143]
[1720769554237,3.56264136,57200.0,57199.0,4.3e-07]
[1720769554441,3.29896712,57200.0,57199.0,4.3e-07]
[1720769554641,2.49886296,57192.0,57191.0,0.001]
[1720769554889,2.58436996,57192.0,57191.0,0.001]
[1720769555041,2.78436996,57192.0,57191.0,0.001]
[1720769555219,1.59992597,57174.0,57173.0,0.0060263]
[1720769555431,3.06825856,57174.0,57173.0,0.0060263]
[1720769555623,2.87027556,57174.0,57173.0,0.0060263]
[1720769555848,1.780331,57174.0,57173.0,0.0060263]
[1720769556055,1.524331,57174.0,57173.0,0.0060263]
[1720769556252,1.59992597,57174.0,57173.0,0.0060263]
[1720769556493,1.69992597,57174.0,57173.0,0.0060263]
[1720769556697,2.68372996,57174.0,57173.0,0.0060263]
[1720769556896,2.91721636,57174.0,57173.0,0.0060263]
[1720769557030,2.71911636,57174.0,57173.0,0.0060263]
[1720769557227,2.59619237,57174.0,57173.0,0.0060263]
[1720769557464,2.62979237,57174.0,57173.0,0.0060263]
[1720769557672,2.32873497,57174.0,57173.0,0.0060263]
[1720769557881,2.23014,57174.0,57173.0,0.0060263]
[1720769558080,2.30573497,57174.0,57173.0,0.0060263]
[1720769559056,2.42865896,57174.0,57173.0,0.0060263]
[1720769559368,2.62865896,57174.0,57173.0,0.0060263]
[1720769559565,2.59889636,57174.0,57173.0,0.0060263]
[1720769559772,0.1,57209.0,57173.0,0.0060263]
[1720769559990,0.07559497,57203.0,57188.0,0.08511435]
[1720769560204,0.174858,57189.0,57188.0,0.12951938]
[1720769560410,0.00150001,57196.0,57190.0,0.04440503]
[1720769560645,0.174852,57191.0,57190.0,0.04440503]
[1720769560918,0.349694,57193.0,57190.0,0.04440503]
[1720769561114,0.174852,57191.0,57190.0,0.04440503]
[1720769561314,0.524557,57191.0,57190.0,0.04440503]
[1720769561801,0.17485,57192.0,57190.0,0.04440503]
[1720769561973,0.174851,57192.0,57190.0,0.04440503]
[1720769562378,0.174852,57191.0,57190.0,0.04440503]
[1720769562792,0.524557,57191.0,57190.0,0.04440503]
[1720769562986,0.3624271,57191.0,57190.0,0.04440503]
[1720769563251,0.7121321,57191.0,57190.0,0.04440503]
[1720769563544,0.3624271,57191.0,57190.0,0.04440503]
[1720769563671,0.1875751,57191.0,57190.0,0.04440503]
[1720769563866,0.1,57191.0,57190.0,0.04440503]
[1720769564298,0.27634701,57193.0,57191.0,0.04440503]
[1720769564528,0.27634701,57193.0,57190.0,0.04440503]
[1720769564681,0.174851,57192.0,57190.0,0.04440503]
[1720769564887,0.1,57191.0,57190.0,0.04440503]
[1720769565513,0.11827736,57191.0,57190.0,0.04440503]
[1720769567580,0.01827736,57191.0,57184.0,0.1443]
[1720769567785,0.01827736,57191.0,57190.0,0.04440503]
[1720769568325,0.19312936,57191.0,57190.0,0.04440503]
[1720769568527,0.2124423,57191.0,57190.0,0.04440503]
[1720769568801,0.01827736,57191.0,57190.0,0.04440503]
[1720769569399,0.19312936,57191.0,57190.0,0.04440503]
[1720769570584,0.174861,57188.0,57187.0,0.04440503]
[1720769570747,0.524584,57188.0,57187.0,0.04440503]
[1720769571144,0.01827736,57191.0,57187.0,0.04440503]
[1720769571484,0.54283436,57191.0,57190.0,0.04440503]
[1720769571861,0.19312936,57191.0,57190.0,0.04440503]
[1720769572061,0.01827736,57191.0,57190.0,0.04440503]
[1720769572260,0.54283436,57191.0,57190.0,0.04440503]
[1720769572651,0.19312936,57191.0,57190.0,0.04440503]
[1720769573832,0.2,57186.0,57183.0,0.00349719]
[1720769574037,0.174904,57174.0,57166.0,0.0659]
[1720769574245,0.95963635,57174.0,57166.0,0.11030503]
[1720769574471,1.42383875,57174.0,57166.0,0.11030503]
[1720769574664,1.49943372,57174.0,57166.0,0.0659]
[1720769574865,1.77364775,57174.0,57166.0,0.0659]
[1720769575095,1.94388505,57174.0,57166.0,0.0659]
[1720769575320,1.94644547,57174.0,57165.0,0.04440503]
[1720769575490,1.93205217,57174.0,57165.0,0.04440503]
[1720769575822,1.94644526,57174.0,57165.0,0.04440503]
[1720769576023,2.01947981,57174.0,57165.0,0.04440503]
[1720769576153,1.85877049,57174.0,57165.0,0.04440503]
[1720769576355,1.85727049,57174.0,57165.0,0.04440503]
[1720769578014,1.93286546,57174.0,57165.0,0.04440503]
[1720769578216,1.76518848,57174.0,57165.0,0.04440503]
[1720769578590,1.78818848,57174.0,57165.0,0.04440503]
[1720769578793,1.78818727,57174.0,57165.0,0.04440503]
[1720769579230,1.78818752,57174.0,57165.0,0.04440503]
[1720769580110,1.72595258,57174.0,57165.0,0.04440503]
[1720769580314,1.97178495,57174.0,57165.0,0.04440503]
[1720769580528,1.70295258,57174.0,57165.0,0.04440503]
[1720769580952,1.72137313,57174.0,57165.0,0.04440503]
[1720769581088,1.69361818,57174.0,57165.0,0.04440503]
[1720769581285,1.70801342,57174.0,57165.0,0.04440503]
[1720769581513,1.69361818,57174.0,57165.0,0.04440503]
[1720769581737,1.69361818,57174.0,57168.0,0.04440503]
[1720769581911,1.69361818,57174.0,57167.0,0.04440503]
[1720769582244,1.69361818,57174.0,57165.0,0.04440503]
[1720769582828,1.69361818,57174.0,57166.0,0.04440503]
[1720769583051,1.69361818,57174.0,57165.0,0.04440503]
[1720769583296,1.224674,57158.0,57157.0,0.06781994]
[1720769583491,0.524916,57152.0,57150.0,0.11173603]
[1720769583618,0.87486,57152.0,57151.0,0.04540503]
[1720769583819,0.524916,57152.0,57151.0,0.04540503]
[1720769584303,0.87486,57152.0,57151.0,0.04540503]
[1720769584496,0.9273516,57152.0,57151.0,0.001]
[1720769584671,0.87486,57152.0,57151.0,0.001]
[1720769585054,0.87486,57152.0,57151.0,0.04540503]
[1720769586247,0.87486,57152.0,57151.0,0.12090503]
[1720769586437,0.87486,57152.0,57151.0,0.0765]
[1720769586720,1.224804,57152.0,57151.0,0.0765]
[1720769586920,1.31662915,57152.0,57151.0,0.0765]
[1720769587322,0.96668515,57152.0,57151.0,0.0765]
[1720769587558,0.87486,57152.0,57151.0,0.12090503]
[1720769587686,1.224804,57152.0,57151.0,0.12090503]
[1720769587886,1.224804,57152.0,57151.0,0.001]
[1720769588088,1.324804,57152.0,57151.0,0.001]
[1720769588316,1.75034297,57152.0,57151.0,0.001]
[1720769588714,1.324804,57152.0,57151.0,0.001]
[1720769589124,0.874965,57145.0,57144.0,0.04217403]
[1720769589325,0.524979,57145.0,57144.0,0.04217403]
[1720769589521,0.874965,57145.0,57144.0,0.04217403]
[1720769590293,0.349973,57148.0,57144.0,0.04217403]
[1720769590496,0.624916,57152.0,57151.0,0.04217403]
[1720769590644,0.97486,57152.0,57151.0,0.04217403]
[1720769591451,0.524925,57151.0,57150.0,0.04217403]
[1720769591626,0.174984,57148.0,57147.0,0.04217403]
[1720769591815,0.524952,57148.0,57147.0,0.04217403]
[1720769592255,0.524952,57148.0,57147.0,0.18687403]
[1720769592454,0.5874472,57148.0,57147.0,0.18687403]
[1720769592657,0.524952,57148.0,57147.0,0.18687403]
[1720769593581,0.1,57152.0,57151.0,0.04217403]
[1720769593582,0.174972,57152.0,57151.0,0.04217403]
[1720769593763,0.174975,57151.0,57150.0,0.04217403]
[1720769594989,0.349945,57152.0,57151.0,0.04217403]
[1720769594990,0.174974,57152.0,57151.0,0.04217403]
[1720769595238,0.17647401,57152.0,57151.0,0.04217403]
[1720769595621,0.00150001,57152.0,57151.0,0.04217403]
[1720769595834,0.174972,57152.0,57151.0,0.16217403]
[1720769596041,0.174972,57152.0,57151.0,0.04217403]
[1720769596704,0.17647201,57152.0,57151.0,0.04217403]
[1720769597309,0.52641601,57152.0,57151.0,0.04217403]
[1720769597528,0.17647201,57152.0,57151.0,0.04217403]
[1720769597940,0.61405001,57152.0,57151.0,0.04217403]
[1720769598194,0.26410601,57152.0,57151.0,0.04217403]
[1720769598568,0.52641601,57152.0,57151.0,0.04217403]
[1720769599128,0.87636001,57152.0,57151.0,0.04217403]
[1720769599558,1.22630401,57152.0,57151.0,0.04217403]
[1720769600390,0.174978,57150.0,57149.0,0.04217403]
[1720769600557,0.52643401,57150.0,57149.0,0.04217403]
[1720769600891,0.699912,57150.0,57149.0,0.04217403]
[1720769601096,0.524952,57148.0,57147.0,0.1447]
[1720769601262,0.87492,57148.0,57147.0,0.18687403]
[1720769602044,0.524952,57148.0,57147.0,0.18687403]
[1720769602244,0.87492,57148.0,57147.0,0.18687403]
[1720769602446,0.2,57161.0,57151.0,0.04217403]
[1720769602633,0.174975,57151.0,57150.0,0.04217403]
[1720769602847,0.524925,57151.0,57150.0,0.04217403]
[1720769603202,0.174975,57151.0,57150.0,0.04217403]
[1720769603390,0.17647501,57151.0,57150.0,0.04217403]